fUST/lending_fUST_20260202
["ID","MTS","AMOUNT","RATE_DAILY","PERIOD"]
[404241368,1769994643998,-157.97,0.00050446,22]
[404241370,1769994644007,-202.15552574,0.0005093,2]
[404241372,1769994644017,-1081.92706547,0.00050999,120]
[404241374,1769994644027,-229.19154926,0.00051,120]
[404241376,1769994644036,-3000.0,0.00051,85]
[404241378,1769994644045,-3000.0,0.0005101,85]
[404241380,1769994644054,-3000.0,0.0005102,85]
[404241382,1769994644064,-3000.0,0.0005103,85]
[404241384,1769994644073,-353.82504916,0.00051039,120]
[404241386,1769994644082,-265.30689494,0.00051039,120]
[404241388,1769994644091,-213.3559612,0.00051039,120]
[404241390,1769994644100,-3000.0,0.0005104,85]
[404241392,1769994644109,-3000.0,0.0005105,85]
[404241394,1769994644119,-3000.0,0.0005106,85]
[404241396,1769994644130,-5105.983552,0.0005107,85]
[404241398,1769994644139,-212.0,0.0005119,30]
[404241400,1769994644149,-162.69285961,0.000512,120]
[404241402,1769994644159,-203.0,0.000512,120]
[404241404,1769994644168,-200.0,0.000514,120]
[404241406,1769994644178,-272.0,0.0005155,120]
[404241408,1769994644187,-203.0,0.000516,120]
[404241410,1769994644196,-203.0,0.00052,120]
[404241412,1769994644205,-300.0,0.00052,120]
[404241414,1769994644215,-200.0,0.00052,120]
[404241416,1769994644223,-500.0,0.00052055,120]
[404241418,1769994644232,-500.0,0.00052055,120]
[404241420,1769994644241,-500.0,0.00052055,120]
[404241422,1769994644250,-500.0,0.00052055,120]
[404241424,1769994644260,-500.0,0.00052055,120]
[404241426,1769994644270,-500.0,0.00052055,120]
[404241428,1769994644279,-516.72397498,0.00052055,120]
[404241430,1769994644288,-600.0,0.00052316,120]
[404241432,1769994644298,-203.0,0.000524,120]
[404241434,1769994644308,-212.0,0.0005249,30]
[404241436,1769994644319,-203.0,0.000528,120]
[404241438,1769994644328,-4649.91309711,0.0005289,4]
[404241440,1769994644338,-990.0,0.00052899,120]
[404241442,1769994644347,-33506.84045851,0.000529,120]
[404241444,1769994644359,-4999.97423919,0.000529,120]
[404241481,1769994644697,-442.495,0.000529,120]
[404241483,1769994644708,-12556.7403023,0.000529,120]
[404241485,1769994644718,-300.0,0.00053,120]
[404241487,1769994644727,-203.0,0.000532,120]
[404241489,1769994644737,-257.06070713,0.000535,120]
[404241491,1769994644746,-203.0,0.000536,120]
[404241493,1769994644755,-200.0,0.00053634,120]
[404241495,1769994644764,-212.0,0.0005379,30]
[404241497,1769994644774,-203.0,0.00054,120]
[404241499,1769994644783,-300.0,0.00054,120]
[404241501,1769994644792,-200.0,0.00054,120]
[404241503,1769994644801,-203.0,0.000544,120]
[404241505,1769994644811,-393.24,0.00054794,2]
[404241507,1769994644821,-335.85792066,0.00054795,120]
[404241509,1769994644830,-381.73872297,0.00054795,120]
[404241511,1769994644842,-118.26127703,0.00054795,120]
[404241513,1769994644851,-500.0,0.00054795,120]
[404241515,1769994644861,-500.0,0.00054795,120]
[404241517,1769994644871,-1000.0,0.000548,60]
[404241519,1769994644882,-203.0,0.000548,120]
[404241521,1769994644892,-159.67628168,0.000549,120]
[404241523,1769994644903,-500.52078724,0.000549,120]
[404241525,1769994644915,-1000.0,0.00055,120]
[404241527,1769994644926,-1998.98693283,0.00055,120]
[404241529,1769994644936,-1000.0,0.00055,120]
[404241532,1769994644947,-212.0,0.0005509,120]
[404241534,1769994644957,-1000.0,0.000551,60]
[404241536,1769994644967,-203.0,0.000552,120]
[404241537,1769994644975,-212.7,0.000553,60]
[404241539,1769994644987,-1000.0,0.000554,60]
[404241541,1769994644996,-203.0,0.000556,120]
[404241543,1769994645005,-2000.0,0.000559,120]
[404241545,1769994645014,-236.33,0.00055922,30]
[404241547,1769994645023,-11.09924608,0.00056,120]
[404241550,1769994645035,-988.90075392,0.00056,120]
[404241551,1769994645044,-1000.0,0.00056,120]
[404241553,1769994645054,-203.0,0.00056,120]
[404241555,1769994645063,-200.0,0.00056,120]
[404241557,1769994645072,-212.0,0.000564,120]
[404241560,1769994645082,-203.0,0.000564,120]
[404241562,1769994645092,-203.0,0.000569,120]
[404241563,1769994645101,-1000.0,0.00057,120]
[404241565,1769994645111,-1000.0,0.00057,120]
[404241567,1769994645121,-95.37546608,0.000573,120]
[404241667,1769994646110,-107.62453392,0.000573,120]
[404241669,1769994646120,-500.0,0.00057535,120]
[404241671,1769994646130,-720.0,0.00057547,120]
[404241673,1769994646139,-4649.91309711,0.0005769,5]
[404241675,1769994646149,-212.0,0.000577,120]
[404241677,1769994646158,-203.0,0.000577,120]
[404241679,1769994646168,-501.53,0.000577,120]
[404241681,1769994646180,-501.53,0.000577,120]
[404241683,1769994646189,-501.53,0.000577,120]
[404241685,1769994646198,-501.53,0.000577,120]
[404241687,1769994646208,-501.53,0.000577,120]
[404241689,1769994646217,-501.53,0.000577,120]
[404241691,1769994646226,-501.53,0.000577,120]
[404241693,1769994646234,-501.53,0.000577,120]
[404241695,1769994646245,-501.53,0.000577,120]
[404241697,1769994646254,-501.53,0.000577,120]
[404241699,1769994646263,-501.53,0.000577,120]
[404241702,1769994646272,-501.53,0.000577,120]
[404241703,1769994646282,-501.53,0.000577,120]
[404241706,1769994646291,-501.53,0.000577,120]
[404241708,1769994646300,-501.53,0.000577,120]
[404241710,1769994646310,-501.53,0.000577,120]
[404241712,1769994646319,-501.53,0.000577,120]
[404241714,1769994646328,-501.53,0.000577,120]
[404241716,1769994646337,-501.53,0.000577,120]
[404241718,1769994646347,-501.53,0.000577,120]
[404241720,1769994646357,-501.53,0.000577,120]
[404241722,1769994646366,-501.53,0.000577,120]
[404241724,1769994646377,-501.53,0.000577,120]
[404241726,1769994646387,-501.53,0.000577,120]
[404241728,1769994646399,-501.53,0.000577,120]
[404241730,1769994646408,-501.53,0.000577,120]
[404241732,1769994646417,-501.53,0.000577,120]
[404241734,1769994646426,-501.53,0.000577,120]
[404241736,1769994646435,-501.53,0.000577,120]
[404241738,1769994646445,-501.53,0.000577,120]
[404241740,1769994646454,-501.53,0.000577,120]
[404241742,1769994646463,-501.53,0.000577,120]
[404241744,1769994646473,-501.53,0.000577,120]
[404241746,1769994646482,-501.53,0.000577,120]
[404241748,1769994646493,-501.53,0.000577,120]
[404241750,1769994646503,-501.53,0.000577,120]
[404241752,1769994646513,-501.53,0.000577,120]
[404241754,1769994646522,-501.53,0.000577,120]
[404241756,1769994646531,-501.53,0.000577,120]
[404241758,1769994646540,-501.53,0.000577,120]
[404241761,1769994646551,-501.53,0.000577,120]
[404241763,1769994646560,-501.53,0.000577,120]
[404241764,1769994646569,-501.53,0.000577,120]
[404241767,1769994646579,-501.53,0.000577,120]
[404241769,1769994646588,-501.53,0.000577,120]
[404241771,1769994646597,-501.53,0.000577,120]
[404241773,1769994646606,-501.53,0.000577,120]
[404241774,1769994646615,-501.53,0.000577,120]
[404241777,1769994646624,-501.53,0.000577,120]
[404241778,1769994646635,-865.47,0.000577,120]
[404241781,1769994646645,-2000.0,0.000579,120]
[404241783,1769994646655,-169.8657665,0.00058,60]
[404241785,1769994646664,-1000.0,0.00058,120]
[404241787,1769994646674,-1000.0,0.00058,120]
[404241789,1769994646683,-200.0,0.00058,120]
[404241791,1769994646692,-203.0,0.000581,120]
[404241793,1769994646701,-203.0,0.000585,120]
[404241795,1769994646710,-5661.68643561,0.000589,120]
[404241797,1769994646719,-203.0,0.000589,120]
[404241799,1769994646728,-1000.0,0.00059,120]
[404241801,1769994646738,-1000.0,0.00059,120]
[404241803,1769994646758,-212.0,0.00059,120]
[404241805,1769994646779,-203.0,0.000593,120]
[404241807,1769994646791,-424.01,0.0005966,30]
[404241809,1769994646801,-203.0,0.000597,120]
[404241811,1769994646812,-2000.0,0.00059715,21]
[404241813,1769994646824,-394.20805525,0.000599,120]
[404242097,1769994800402,-500.0,0.00013273,2]
[404242098,1769994800428,-500.0,0.00013273,2]
[404242099,1769994800466,-346.84863601,0.00013673,2]
[404242100,1769994800497,-500.0,0.00013699,2]
[404242101,1769994800528,-500.0,0.00013699,2]
[404242102,1769994800559,-655.51324143,0.00013821,2]
[404242103,1769994800590,-1000.0,0.00013821,2]
[404242104,1769994800618,-995.28624512,0.00014247,2]
[404242105,1769994800740,-4.71375488,0.00014247,2]
[404242106,1769994806303,-1000.0,0.00014247,2]
[404242107,1769994806331,-1500.0,0.00014368,2]
[404242108,1769994806357,-1500.0,0.00014795,2]
[404242109,1769994806386,-500.01,0.00014795,2]
[404242110,1769994806441,-999.99,0.00014795,2]
[404242117,1769994870326,161.72349687,0.00036875,120]
[404242118,1769995002132,4652.08,0.00030137,120]
[404242119,1769995074806,-440.46846917,0.00013009,2]
[404242127,1769995184789,-1000.0,0.00013009,2]
[404242128,1769995210330,-500.0,0.00012879,2]
[404242129,1769995213257,-500.0,0.00012879,2]
[404242130,1769995216170,-151.75939226,0.0001275,2]
[404242131,1769995216197,-348.24060774,0.00012879,2]
[404242132,1769995244075,-1450.39288266,0.00012879,2]
[404242133,1769995249682,300.0,0.000129,2]
[404242134,1769995284154,-483.02742215,0.000129,2]
[404242136,1769995533170,-889.53933364,0.00012771,2]
[404242141,1769995648112,-523.64787969,0.00012783,2]
[404242146,1769995718034,500.48360225,6.546e-05,2]
[404242147,1769995734087,-4476.35212031,0.00012783,2]
[404242148,1769995734117,-150.0,0.00012912,2]
[404242149,1769995734145,-300.0,0.00013272,2]
[404242150,1769995734167,-500.0,0.00013273,2]
[404242151,1769995734177,-221.6317276,0.00013273,2]
[404242152,1769995734188,-483.02742215,0.00013273,2]
[404242153,1769995734197,-500.0,0.00013273,2]
[404242154,1769995734208,-500.0,0.000133,2]
[404242155,1769995734220,-500.0,0.00013699,2]
[404242156,1769995734233,-500.0,0.000138,2]
[404242157,1769995734244,-300.0,0.00013818,2]
[404242158,1769995734255,-300.0,0.00013819,2]
[404242159,1769995734264,-593.69315787,0.00013821,2]
[404242160,1769995734274,-77.99981269,0.00013821,2]
[404242161,1769995734286,-150.0,0.00013821,2]
[404242162,1769995734299,-300.0,0.00013821,2]
[404242163,1769995734314,-147.30575938,0.00013821,2]
[404242164,1769995740000,-324.69442793,0.00013821,2]
[404242166,1769995803972,303.78681207,0.00036875,20]
[404242167,1769995806355,301.65056725,0.00036875,20]
[404242179,1769995817220,176.09526331,0.00036875,120]
[404242180,1769995820457,4260.0,0.00036875,120]
[404242181,1769995822093,227.65741914,0.00036875,120]
[404242184,1769995825405,153.64645514,0.00036875,120]
[404242185,1769995830251,164.16983116,0.00036875,120]
[404242236,1769995831933,-500.0,0.00013273,2]
[404242238,1769995831943,-500.0,0.00013699,2]
[404242240,1769995831952,-500.0,0.00013699,2]
[404242242,1769995831961,-1009.80954684,0.00013821,2]
[404242244,1769995831970,-5000.0,0.00014104,2]
[404242246,1769995831979,-1292.99074965,0.000142,5]
[404242248,1769995831988,-1000.0,0.00014247,2]
[404242250,1769995831997,-300.0,0.00014367,2]
[404242252,1769995832006,-1500.0,0.00014795,2]
[404242254,1769995832015,-177.0,0.00014912,2]
[404242256,1769995832024,-2000.0,0.00015342,2]
[404242259,1769995832034,-420.0,0.00015735,2]
[404242261,1769995832043,-2500.0,0.0001589,2]
[404242262,1769995832052,-500.0,0.00016437,2]
[404242266,1769995832063,-428.19589309,0.00016437,2]
[404242269,1769995832073,-3000.0,0.00016438,2]
[404242273,1769995832083,-204.0,0.00016912,2]
[404242275,1769995832092,-500.0,0.00016986,2]
[404242278,1769995832101,-541.78421547,0.00017,2]
[404242280,1769995832110,-587.0,0.00017232,2]
[404242283,1769995832119,-4815.42849348,0.0001747,2]
[404242286,1769995832128,-823.0,0.00018871,2]
[404242289,1769995832137,-231.0,0.00018912,2]
[404242292,1769995832146,-217.7359185,0.00020787,2]
[404242295,1769995832155,-230.9269,0.00020912,2]
[404242298,1769995832164,-150.0,0.00021918,2]
[404242300,1769995832173,-1000.0,0.00022304,30]
[404242302,1769995832182,-180.5,0.00022304,2]
[404242304,1769995832191,-300.0,0.00022466,2]
[404242306,1769995832200,-300.0,0.00023014,2]
[404242316,1769995832293,-1590.39890445,0.00026,30]
[404242318,1769995832307,-250.6869969,0.00030391,2]
[404242320,1769995832317,-314.0,0.00031273,2]
[404242323,1769995832328,-386.0,0.00031619,2]
[404242325,1769995832337,-1421.3858,0.0003222,30]
[404242327,1769995832347,-26658.35057906,0.00035,2]
[404242328,1769995832356,-4335.04461763,0.00036775,2]
[404242330,1769995832365,-1210.5893959,0.0003687,30]
[404242332,1769995832374,-5769.41302512,0.00036875,2]
[404242334,1769995832383,-2000.0,0.00036875,20]
[404242336,1769995832392,-150.04701162,0.00037262,2]
[404242338,1769995832402,-150.0,0.00038356,5]
[404242340,1769995832411,-250.0,0.00038904,5]
[404242342,1769995832420,-350.0,0.00039452,5]
[404242344,1769995832429,-450.0,0.0004,5]
[404242345,1769995832438,-263.04078006,0.00040548,5]
[404242347,1769995832447,-247.67753441,0.00045656,120]
[404242348,1769995832457,-185.71482646,0.00045656,120]
[404242349,1769995832467,-11468.5432413,0.00045657,2]
[404242350,1769995832476,-408.86,0.00051945,120]
[404242351,1769995832485,-1053.0,0.00053,120]
[404242352,1769995832494,-1147.52907,0.000537,25]
[404242353,1769995832503,-300.0,0.00054685,120]
[404242354,1769995832512,-300.0,0.00054795,120]
[404242355,1769995832521,-1048.62,0.000555,120]
[404242356,1769995832531,-2558.9778901,0.00055788,2]
[404242357,1769995832540,-1000.0,0.00056,120]
[404242358,1769995832549,-153.25124669,0.00057774,120]
[404242359,1769995832559,-570.9851464,0.00058048,2]
[404242360,1769995832569,-151.96396085,0.00059899,120]
[404242361,1769995832579,-1844.0754214,0.000599,120]
[404242362,1769995832588,-1000.0,0.000599,120]
[404242363,1769995832597,-1000.0,0.00059999,120]
[404242364,1769995832606,-1000.0,0.0006,120]
[404242365,1769995832615,-1405.84,0.0006,120]
[404242366,1769995832624,-200.0,0.0006,120]
[404242367,1769995832634,-1000.0,0.0006,120]
[404242368,1769995832643,-1998.98693283,0.0006,120]
[404242369,1769995832652,-2000.0,0.0006,120]
[404242370,1769995832662,-203.0,0.000601,120]
[404242371,1769995832671,-203.0,0.000605,120]
[404242372,1769995832680,-203.0,0.000609,120]
[404242373,1769995832689,-1000.0,0.00061,120]
[404242374,1769995832699,-203.0,0.000613,120]
[404242375,1769995832711,-2000.0,0.00061453,35]
[404242376,1769995832719,-203.0,0.000617,120]
[404242377,1769995832729,-1000.0,0.00062,120]
[404242378,1769995832738,-200.0,0.00062,120]
[404242379,1769995832747,-203.0,0.000621,120]
[404242380,1769995832756,-203.0,0.000625,120]
[404242381,1769995832766,-203.0,0.000629,120]
[404242382,1769995832774,-1000.0,0.00063,120]
[404242383,1769995832783,-203.0,0.000633,120]
[404242384,1769995832793,-151.0,0.0006368,120]
[404242385,1769995832803,-203.0,0.000637,120]
[404242386,1769995832815,-1000.0,0.000639,120]
[404242387,1769995832824,-200.0,0.00064,120]
[404242388,1769995832833,-500.0,0.00064,120]
[404242389,1769995832842,-203.0,0.000641,120]
[404242390,1769995832851,-203.0,0.000645,120]
[404242391,1769995832860,-203.0,0.000649,120]
[404242392,1769995832870,-600.0,0.00064954,120]
[404242393,1769995832880,-1998.98693283,0.00065,120]
[404242394,1769995832889,-500.0,0.00065,120]
[404242395,1769995832898,-203.0,0.000653,120]
[404242396,1769995832907,-203.0,0.000657,120]
[404242397,1769995832916,-500.0,0.00066,120]
[404242398,1769995832926,-203.0,0.000661,120]
[404242399,1769995832935,-203.0,0.000665,120]
[404242400,1769995832945,-203.0,0.000669,120]
[404242401,1769995832954,-500.0,0.00067,120]
[404242402,1769995832962,-203.0,0.000673,120]
[404242403,1769995832972,-203.0,0.000677,120]
[404242404,1769995832981,-1000.0,0.000679,120]
[404242405,1769995832991,-603.79,0.00068,60]
[404242406,1769995833000,-500.0,0.00068,120]
[404242407,1769995833010,-203.0,0.000681,120]
[404242408,1769995833019,-203.0,0.000685,120]
[404242409,1769995833029,-150.28,0.000685,120]
[404242410,1769995833038,-203.0,0.000689,120]
[404242411,1769995833047,-3000.0,0.00069,120]
[404242412,1769995833057,-500.0,0.00069,120]
[404242413,1769995833066,-3000.0,0.0006901,120]
[404242414,1769995833076,-3000.0,0.0006902,120]
[404242415,1769995833085,-3000.0,0.0006903,120]
[404242416,1769995833095,-3663.590131,0.0006904,120]
[404242417,1769995833104,-203.0,0.000693,120]
[404242418,1769995833113,-203.0,0.000697,120]
[404242419,1769995833123,-4184.9217874,0.0006999,6]
[404242420,1769995833132,-5447.0,0.0007,120]
[404242421,1769995833141,-300.0,0.0007,120]
[404242422,1769995833150,-1000.0,0.0007,120]
[404242423,1769995833160,-1998.98693283,0.0007,120]
[404242424,1769995833169,-2000.0,0.0007,120]
[404242425,1769995833179,-500.0,0.0007,120]
[404242426,1769995833188,-203.0,0.000701,120]
[404242427,1769995833197,-203.0,0.000706,120]
[404242428,1769995833206,-500.0,0.00071,120]
[404242429,1769995833215,-203.0,0.00071,120]
[404242430,1769995833225,-990.0,0.00071399,120]
[404242431,1769995833235,-203.0,0.000714,120]
[404242432,1769995833244,-182.26,0.00071439,10]
[404242433,1769995833257,-720.0,0.00071449,120]
[404242434,1769995833266,-200.0,0.00071658,120]
[404242435,1769995833277,-200.0,0.00071658,120]
[404242436,1769995833287,-204.73602822,0.00071658,120]
[404242437,1769995833297,-203.0,0.000718,120]
[404242438,1769995833309,-177.602982,0.000718,120]
[404242439,1769995833319,-200.0,0.0007188,120]
[404242440,1769995833330,-200.0,0.0007188,120]
[404242441,1769995833340,-200.0,0.0007188,120]
[404242442,1769995833350,-1000.0,0.000719,120]
[404242443,1769995833359,-500.0,0.00072,120]
[404242444,1769995833368,-200.0,0.00072,120]
[404242445,1769995833378,-203.0,0.000722,120]
[404242446,1769995833387,-514.1,0.000722,30]
[404242447,1769995833397,-203.0,0.000726,120]
[404242448,1769995833408,-150.04701162,0.00072808,2]
[404242449,1769995833418,-500.0,0.00073,120]
[404242450,1769995833428,-203.0,0.00073,120]
[404242451,1769995833437,-203.0,0.000734,120]
[404242452,1769995833446,-203.0,0.000738,120]
[404242453,1769995833455,-2625.85197306,0.0007399,6]
[404242454,1769995833468,-417.16503418,0.0007399,6]
[404242455,1769995833479,-1078.08916142,0.0007399,6]
[404242464,1769995838016,-308.09057767,0.00030893,2]
[404242465,1769995838026,-174.70395807,0.00034999,7]
[404242466,1769995838036,-150.0,0.00036415,30]
[404242467,1769995838046,-479.5628771,0.00036875,7]
[404242468,1769995838056,-63.81561874,0.0007399,6]
[404242469,1769995838066,-200.0,0.00074,120]
[404242470,1769995838075,-500.0,0.00074,120]
[404242472,1769995838085,-12141.17737933,0.00074,30]
[404243173,1769995845410,-25036.78262067,0.00074,30]
[404243175,1769995845420,-151.0,0.00074,120]
[404243177,1769995845430,-151.0,0.00074,120]
[404243179,1769995845439,-151.0,0.00074,120]
[404243181,1769995845448,-151.0,0.00074,120]
[404243183,1769995845456,-151.0,0.00074,120]
[404243185,1769995845466,-151.0,0.00074,120]
[404243187,1769995845475,-151.0,0.00074,120]
[404243189,1769995845485,-151.0,0.00074,120]
[404243191,1769995845494,-162.179688,0.00074,120]
[404243193,1769995845503,-162.179688,0.00074,120]
[404243195,1769995845512,-162.179688,0.00074,120]
[404243196,1769995845522,-151.0,0.00074,120]
[404243199,1769995845532,-162.179688,0.00074,120]
[404243201,1769995845543,-151.0,0.00074,120]
[404243203,1769995845552,-151.0,0.00074,120]
[404243205,1769995845562,-167.842176,0.00074,120]
[404243208,1769995845574,-151.0,0.00074,120]
[404243209,1769995845584,-151.0,0.00074,120]
[404243212,1769995845594,-151.0,0.00074,7]
[404243215,1769995845615,-468.274566,0.00074,120]
[404243216,1769995845625,-468.274566,0.00074,120]
[404243219,1769995845636,-468.274566,0.00074,120]
[404243220,1769995845646,-468.274566,0.00074,120]
[404243223,1769995845657,-369.142126,0.00074,120]
[404243225,1769995845666,-369.142126,0.00074,120]
[404243227,1769995845676,-369.142126,0.00074,120]
[404243229,1769995845685,-369.142126,0.00074,120]
[404243231,1769995845697,-295.289108,0.00074,120]
[404243234,1769995845709,-151.0,0.00074,120]
[404243237,1769995845719,-151.0,0.00074,120]
[404243239,1769995845729,-151.0,0.00074,120]
[404243241,1769995845739,-151.0,0.00074,120]
[404243243,1769995845748,-151.0,0.00074,120]
[404243245,1769995845758,-151.0,0.00074,120]
[404243247,1769995845767,-151.0,0.00074,120]
[404243249,1769995845776,-151.0,0.00074,120]
[404243251,1769995845785,-151.0,0.00074,120]
[404243253,1769995845795,-225.005117,0.00074,120]
[404243255,1769995845804,-225.005117,0.00074,120]
[404243257,1769995845813,-225.005117,0.00074,120]
[404243259,1769995845824,-225.005117,0.00074,120]
[404243260,1769995845833,-151.0,0.00074,120]
[404243262,1769995845842,-151.0,0.00074,120]
[404243264,1769995845852,-621.671218,0.00074,120]
[404243267,1769995845862,-621.671218,0.00074,120]
[404243270,1769995845871,-151.0,0.00074,120]
[404243272,1769995845881,-621.671218,0.00074,120]
[404243274,1769995845891,-621.671218,0.00074,120]
[404243276,1769995845901,-151.0,0.00074,120]
[404243278,1769995845911,-249.206494,0.00074,120]
[404243280,1769995845920,-151.0,0.00074,120]
[404243282,1769995845930,-249.206494,0.00074,120]
[404243284,1769995845939,-249.206494,0.00074,120]
[404243286,1769995845949,-249.206494,0.00074,120]
[404243288,1769995845958,-151.0,0.00074,2]
[404243290,1769995845967,-151.0,0.00074,120]
[404243292,1769995845977,-151.0,0.00074,120]
[404243294,1769995845986,-151.0,0.00074,120]
[404243296,1769995845996,-151.0,0.00074,120]
[404243298,1769995846005,-151.0,0.00074,120]
[404243300,1769995846014,-151.0,0.00074,120]
[404243302,1769995846023,-300.305592,0.00074,120]
[404243316,1769995846143,-151.0,0.00074,60]
[404243318,1769995846153,-190.644516,0.00074,10]
[404243320,1769995846163,-190.644516,0.00074,10]
[404243322,1769995846172,-190.644516,0.00074,10]
[404243324,1769995846181,-190.644516,0.00074,10]
[404243326,1769995846191,-151.0,0.00074,120]
[404243328,1769995846201,-151.0,0.00074,120]
[404243330,1769995846210,-151.0,0.00074,120]
[404243332,1769995846219,-151.0,0.00074,120]
[404243334,1769995846228,-151.0,0.00074,120]
[404243336,1769995846238,-151.0,0.00074,120]
[404243338,1769995846247,-301.477176,0.00074,120]
[404243340,1769995846257,-151.0,0.00074,120]
[404243342,1769995846266,-174.798799,0.00074,120]
[404243344,1769995846276,-174.798799,0.00074,120]
[404243346,1769995846285,-174.798799,0.00074,120]
[404243348,1769995846295,-151.0,0.00074,120]
[404243350,1769995846305,-151.0,0.00074,120]
[404243352,1769995846314,-174.798799,0.00074,120]
[404243354,1769995846324,-151.0,0.00074,120]
[404243356,1769995846333,-151.0,0.00074,120]
[404243358,1769995846344,-151.0,0.00074,120]
[404243360,1769995846352,-151.0,0.00074,120]
[404243361,1769995846361,-151.0,0.00074,60]
[404243363,1769995846370,-151.0,0.00074,120]
[404243365,1769995846380,-835.283825,0.00074,120]
[404243367,1769995846389,-771.216786,0.00074,120]
[404243369,1769995846398,-771.216786,0.00074,120]
[404243370,1769995846407,-771.216786,0.00074,120]
[404243371,1769995846416,-771.216786,0.00074,120]
[404243372,1769995846428,-835.283825,0.00074,120]
[404243373,1769995846437,-835.283825,0.00074,120]
[404243374,1769995846446,-835.283825,0.00074,120]
[404243375,1769995846454,-203.0,0.000742,120]
[404243377,1769995846464,-203.0,0.000746,120]
[404243379,1769995846473,-4184.9217874,0.0007499,6]
[404243381,1769995846482,-23375.0,0.00075,120]
[404243383,1769995846491,-1998.98693283,0.00075,120]
[404243385,1769995846500,-500.0,0.00075,120]
[404243387,1769995846509,-203.0,0.00075,120]
[404243389,1769995846518,-514.1,0.00075,30]
[404243391,1769995846527,-203.0,0.000754,120]
[404243393,1769995846536,-151.0,0.00075435,120]
[404243395,1769995846544,-151.0,0.00075435,120]
[404243397,1769995846553,-151.0,0.00075435,120]
[404243399,1769995846562,-240.548835,0.00075435,120]
[404243401,1769995846572,-162.179688,0.00075435,120]
[404243402,1769995846583,-162.179688,0.00075435,120]
[404243405,1769995846592,-162.179688,0.00075435,120]
[404243407,1769995846601,-151.0,0.00075435,120]
[404243408,1769995846610,-162.179688,0.00075435,120]
[404243411,1769995846620,-151.0,0.00075435,120]
[404243413,1769995846628,-151.0,0.00075435,120]
[404243415,1769995846638,-151.0,0.00075435,120]
[404243417,1769995846647,-238.130016,0.00075435,120]
[404243418,1769995846656,-468.274566,0.00075435,120]
[404243421,1769995846665,-468.274566,0.00075435,120]
[404243422,1769995846674,-468.274566,0.00075435,120]
[404243425,1769995846685,-468.274566,0.00075435,120]
[404243427,1769995846698,-369.142126,0.00075435,120]
[404243428,1769995846707,-369.142126,0.00075435,120]
[404243431,1769995846717,-369.142126,0.00075435,120]
[404243433,1769995846726,-369.142126,0.00075435,120]
[404243435,1769995846735,-151.0,0.00075435,120]
[404243436,1769995846745,-151.0,0.00075435,120]